bitfinex/quotes_SOLUSD_20240813
["timestamp","ask_amount","ask_price","bid_price","bid_amount"]
[1723551535715,26.8362,146.28,146.27,0.50196]
[1723551535923,6.8376,146.25,146.21,6.8391]
[1723551536126,20.0,146.28,146.22,6.8389]
[1723551536127,6.8372,146.26,146.22,6.8389]
[1723551536454,6.8372,146.26,146.21,17.0983]
[1723551536748,6.8368,146.27,146.23,6.8385]
[1723551537271,6.8368,146.27,146.24,45.25098]
[1723551537557,6.8368,146.27,146.24,45.37647]
[1723551538057,6.8371,146.26,146.24,45.37647]
[1723551538240,6.8368,146.27,146.24,45.37647]
[1723551538440,26.8363,146.28,146.24,52.21447]
[1723551538642,20.0,146.28,146.26,0.12549]
[1723551538848,20.0,146.28,146.26,45.37647]
[1723551539058,26.8362,146.28,146.26,45.37647]
[1723551539947,22.7108,146.32,146.28,6.836]
[1723551540258,20.0,146.31,146.29,45.50196]
[1723551540450,22.7108,146.32,146.3,0.12549]
[1723551540829,29.5452,146.32,146.3,0.12549]
[1723551541025,29.5452,146.32,146.29,0.37647]
[1723551541026,6.8352,146.3,146.29,0.37647]
[1723551541233,6.8352,146.3,146.29,0.25098]
[1723551541645,6.8349,146.31,146.29,0.25098]
[1723551541849,16.2315,146.32,146.3,0.12549]
[1723551542037,0.09664165,146.34,146.31,0.12549]
[1723551542251,0.09664165,146.34,146.31,0.25098]
[1723551542433,0.09664165,146.34,146.33,0.12549]
[1723551542634,0.09664165,146.34,146.33,0.37647]
[1723551542945,6.93004165,146.34,146.33,0.37647]
[1723551543150,0.09664165,146.34,146.28,0.12549]
[1723551543471,6.835,146.31,146.28,45.50196]
[1723551543638,6.8344,146.32,146.28,52.33806]
[1723551543840,6.834,146.33,146.3,0.12549]
[1723551544039,6.834,146.33,146.3,45.50196]
[1723551544263,0.09664165,146.34,146.3,45.50196]
[1723551544472,0.09664165,146.34,146.31,6.8346]
[1723551544637,6.93004165,146.34,146.32,0.12549]
[1723551544840,6.93004165,146.34,146.3,52.21147]
[1723551544841,6.8346,146.32,146.3,45.37647]
[1723551545056,6.8346,146.32,146.31,0.12549]
[1723551546574,17.0848,146.33,146.26,17.0921]
[1723551546862,20.0,146.32,146.22,31.46]
[1723551547100,6.8365,146.28,146.24,6.8379]
[1723551547378,20.0,146.32,146.23,17.0953]
[1723551547379,6.8367,146.27,146.23,23.9337]
[1723551547660,32.6446,146.29,146.2,24.22916652]
[1723551547860,20.0,146.26,146.2,24.22916652]
[1723551548072,1.7096972,146.25,146.2,17.0989]
[1723551548371,20.0,146.26,146.2,17.0989]
[1723551548372,6.8381,146.24,146.2,23.9384]
[1723551548574,20.0,146.26,146.2,17.0989]
[1723551548779,20.0,146.28,146.2,17.0989]
[1723551549445,20.0,146.28,146.21,45.50196]
[1723551549651,20.0,146.28,146.21,52.34106]
[1723551549861,6.8372,146.26,146.23,0.12549]
[1723551550169,20.0,146.25,146.23,45.50196]
[1723551550355,20.0,146.28,146.23,45.50196]
[1723551550356,15.5551,146.29,146.23,45.50196]
[1723551550570,15.5551,146.29,146.26,6.8369]
[1723551550895,15.5551,146.29,146.28,0.12549]
[1723551551098,6.3708,146.3,146.28,0.12549]
[1723551551970,6.8352,146.31,146.28,0.12549]
[1723551552490,6.8353,146.3,146.28,0.12549]
[1723551552668,21.9808,146.33,146.28,0.12549]
[1723551552986,6.8347,146.32,146.28,0.12549]
[1723551553182,26.8349,146.31,146.28,0.12549]
[1723551553585,6.8357,146.29,146.28,0.12549]
[1723551554383,6.8362,146.28,146.27,45.37647]
[1723551554564,6.8362,146.28,146.27,45.50196]
[1723551555172,6.8362,146.28,146.23,17.0955]
[1723551555396,17.0884,146.3,146.23,17.0955]
[1723551555397,6.8367,146.27,146.23,17.0955]
[1723551555704,6.8367,146.27,146.23,23.9337]
[1723551555869,6.8371,146.26,146.23,17.0955]
[1723551556792,17.0884,146.3,146.25,0.12549]
[1723551556978,51.44,146.32,146.25,0.25098]
[1723551556979,6.8365,146.28,146.25,0.25098]
[1723551557186,6.8365,146.28,146.27,0.12549]
[1723551557378,20.0,146.28,146.27,0.12549]
[1723551557980,6.8366,146.27,146.26,0.25098]
[1723551558471,6.8366,146.27,146.26,0.12549]
[1723551559983,26.8362,146.28,146.26,0.12549]
[1723551560191,6.8349,146.31,146.27,6.96179]
[1723551560395,20.0,146.3,146.29,0.12549]
[1723551561267,20.0,146.3,146.28,0.12549]
[1723551561472,20.0,146.32,146.28,0.12549]
[1723551561682,6.8355,146.3,146.28,0.25098]
[1723551562693,37.086,146.32,146.26,0.12549]
[1723551562898,6.836,146.29,146.26,45.50196]
[1723551563692,6.8362,146.28,146.26,45.50196]
[1723551563888,6.8366,146.28,146.26,0.12549]
[1723551564189,6.8358,146.29,146.25,7.08848]
[1723551565391,37.086,146.32,146.26,45.25098]
[1723551565602,6.8362,146.28,146.27,0.12549]
[1723551566271,6.8358,146.29,146.27,0.12549]
[1723551566671,20.0,146.28,146.24,0.12549]
[1723551566891,6.8371,146.26,146.24,0.25098]
[1723551567110,6.8371,146.26,146.23,0.25098]
[1723551567772,6.8376,146.25,146.21,23.9371]
[1723551568187,21.7582,146.27,146.18,51.3052]
[1723551568386,20.0,146.26,146.18,34.2042]
[1723551568895,6.8378,146.25,146.21,6.8393]
[1723551569194,6.838,146.25,146.21,8.20381199]
[1723551569396,20.0,146.26,146.21,1.36481199]
[1723551569784,20.0,146.26,146.23,0.12549]
[1723551569989,26.8373,146.26,146.23,0.25098]
[1723551570491,20.0,146.26,146.23,52.08938]
[1723551570687,20.0,146.26,146.25,0.12549]
[1723551570993,20.0,146.26,146.25,0.25098]
[1723551571793,6.8363,146.28,146.25,0.37647]
[1723551572116,20.0,146.27,146.25,45.37647]
[1723551572277,26.8369,146.27,146.25,45.37647]
[1723551572476,6.8371,146.26,146.25,0.37647]
[1723551572678,6.8371,146.26,146.25,0.50196]
[1723551572894,26.8368,146.27,146.25,0.50196]
[1723551573101,20.0,146.27,146.25,0.50196]
[1723551573429,6.8354,146.3,146.27,0.12549]
[1723551573628,26.8354,146.3,146.27,45.25098]
[1723551573828,20.0,146.3,146.29,0.12549]
[1723551574127,6.8348,146.31,146.29,0.12549]
[1723551574320,6.8348,146.31,146.29,0.25098]
[1723551574496,32.49824165,146.34,146.29,0.25098]
[1723551574497,6.8352,146.3,146.29,0.25098]
[1723551574699,6.8352,146.3,146.29,0.37647]
[1723551575201,26.8352,146.3,146.29,0.37647]
[1723551575418,6.8357,146.29,146.27,45.0]
[1723551575605,20.0,146.3,146.25,0.12549]
[1723551575814,20.0,146.29,146.25,45.25098]
[1723551575999,20.0,146.29,146.26,0.12549]
[1723551576000,6.8367,146.27,146.26,0.12549]
[1723551576195,6.8371,146.26,146.23,17.0954]
[1723551576400,6.8371,146.26,146.22,6.8388]
[1723551576599,6.8368,146.27,146.23,6.8384]
[1723551576822,6.8368,146.27,146.24,6.838]
[1723551577030,6.8363,146.28,146.24,6.838]
[1723551577203,6.8368,146.27,146.23,6.8384]
[1723551577721,6.8368,146.27,146.24,0.25098]
[1723551577912,6.8368,146.27,146.25,0.12549]
[1723551579127,26.4147,146.29,146.26,0.12549]
[1723551579808,33.2508,146.29,146.25,7.08838]
[1723551580012,6.8366,146.27,146.26,45.37647]
[1723551580213,6.8366,146.27,146.26,0.37647]
[1723551580698,6.8363,146.28,146.26,0.37647]
[1723551580898,6.8363,146.28,146.27,0.12549]
[1723551581096,26.8363,146.28,146.27,0.12549]
[1723551582130,20.0,146.28,146.27,0.12549]
[1723551582325,20.0,146.28,146.27,0.37647]
[1723551583034,26.8362,146.28,146.27,0.37647]
[1723551583228,26.8362,146.28,146.27,0.12549]
[1723551584118,6.8379,146.25,146.21,23.937]
[1723551584312,6.8379,146.25,146.22,6.8389]
[1723551585111,36.572,146.28,146.21,17.0978]
[1723551585320,6.8399,146.2,146.14,31.44]
[1723551585521,31.44,146.25,146.15,17.1051]
[1723551585522,17.0964,146.23,146.15,17.1051]
[1723551585831,20.0,146.22,146.2,6.8398]
[1723551586136,6.8374,146.26,146.21,6.8391]
[1723551586303,20.0,146.25,146.21,6.8391]
[1723551586502,26.8377,146.25,146.21,6.8391]
[1723551586934,6.838,146.24,146.2,6.8398]
[1723551587235,6.838,146.24,146.21,0.50196]
[1723551587402,6.838,146.24,146.21,45.50196]
[1723551587830,26.8377,146.25,146.21,52.34126]
[1723551588407,6.8381,146.24,146.21,45.50196]
[1723551588831,6.8385,146.23,146.21,45.50196]
[1723551589131,6.8382,146.24,146.21,0.50196]
[1723551592734,26.8377,146.25,146.21,7.34136]
[1723551593035,26.8377,146.25,146.23,0.12549]
[1723551593036,6.838,146.24,146.23,0.12549]
[1723551593224,26.838,146.24,146.23,0.37647]
[1723551594450,20.0,146.24,146.21,0.12549]
[1723551594738,6.8402,146.2,146.16,23.9451]
[1723551594920,6.8404,146.19,146.16,17.1035]
[1723551595333,15.5087,146.22,146.16,17.1035]
[1723551595540,26.8397,146.21,146.17,6.8412]
[1723551596249,6.8399,146.2,146.19,0.12549]
[1723551596620,6.8399,146.2,146.18,0.12549]
[1723551597038,20.0,146.21,146.17,7.09198]
[1723551597236,20.0,146.21,146.19,0.12549]
[1723551597422,6.8399,146.2,146.19,0.25098]
[1723551598140,6.8399,146.2,146.19,0.12549]
[1723551598529,20.0,146.21,146.16,0.12549]
[1723551598729,20.0,146.21,146.14,17.1059]
[1723551598730,6.8405,146.19,146.15,52.34386]
[1723551598937,26.8396,146.21,146.17,6.96679]
[1723551599234,20.0,146.21,146.19,0.12549]
[1723551600233,20.0,146.21,146.19,0.25098]
[1723551600437,20.0,146.21,146.2,0.12549]
[1723551600819,26.8394,146.21,146.2,0.12549]
[1723551601123,6.8399,146.2,146.19,0.25098]
[1723551601425,26.8396,146.21,146.19,0.25098]
[1723551602347,20.0,146.21,146.2,6.8399]
[1723551602643,15.7494,146.25,146.21,0.12549]
[1723551602950,22.5871,146.25,146.21,7.21557]
[1723551603133,20.0,146.24,146.23,0.12549]
[1723551603922,20.0,146.24,146.23,0.02884835]
[1723551604243,6.8366,146.27,146.23,6.86724835]
[1723551604448,15.3413,146.29,146.24,62.34568]
[1723551604678,15.3413,146.29,146.25,1.48939803]
[1723551604822,15.3413,146.29,146.26,0.25098]
[1723551605144,6.8362,146.28,146.26,0.25098]
[1723551605345,22.1772,146.29,146.26,0.25098]
[1723551605548,22.1772,146.29,146.27,0.12549]
[1723551606047,16.561,146.34,146.29,6.8355]
[1723551606252,16.561,146.34,146.3,0.25098]
[1723551606550,6.3171,146.35,146.31,0.12549]
[1723551606749,6.8325,146.36,146.32,0.12549]
[1723551606964,6.8325,146.36,146.32,45.37647]
[1723551607124,6.832,146.37,146.34,0.12549]
[1723551607450,6.8325,146.36,146.34,45.25098]
[1723551607656,6.8325,146.36,146.33,0.12549]
[1723551607657,6.8334,146.34,146.33,0.12549]
[1723551607944,6.8334,146.34,146.33,0.50196]
[1723551608537,6.8334,146.34,146.33,0.12549]
[1723551608744,65.0903,146.38,146.3,0.12549]
[1723551608944,65.0903,146.38,146.26,48.542]
[1723551608945,6.8351,146.31,146.26,23.929]
[1723551609118,6.8353,146.3,146.26,23.929]
[1723551609325,48.5339,146.34,146.22,48.547]
[1723551609624,6.8364,146.28,146.24,6.838]
[1723551609820,16.1731,146.31,146.23,6.8384]
[1723551610157,6.837,146.27,146.22,23.9359]
[1723551610464,6.8374,146.26,146.22,17.097]
[1723551610660,68.5387,146.3,146.2,6.8398]
[1723551610825,48.541,146.28,146.19,23.9411]
[1723551611039,6.8376,146.25,146.21,6.8391]
[1723551611236,6.8367,146.27,146.22,6.8385]
[1723551611462,20.0,146.3,146.23,17.0957]
[1723551611843,6.836,146.29,146.24,7.85582324]
[1723551612049,20.0,146.28,146.25,0.12549]
[1723551612251,20.0,146.28,146.25,45.50196]
[1723551612567,26.8362,146.28,146.25,46.51925682]
[1723551612861,20.0,146.28,146.25,46.51925682]
[1723551613068,20.0,146.28,146.25,45.50196]
[1723551613867,26.8362,146.28,146.25,45.50196]
[1723551614952,20.0,146.28,146.25,45.50196]
[1723551615144,20.0,146.29,146.25,45.50196]
[1723551615347,20.0,146.29,146.2,48.5489]
[1723551615563,20.0,146.29,146.2,17.0989]
[1723551615763,6.8386,146.23,146.2,17.0989]
[1723551616266,6.8395,146.21,146.17,17.1028]
[1723551616466,6.8397,146.21,146.17,17.1028]
[1723551616678,6.8397,146.21,146.17,23.9439]
[1723551616978,6.3299,146.24,146.18,6.8407]
[1723551617152,26.8388,146.23,146.18,6.8407]
[1723551617578,26.8388,146.23,146.19,6.8404]
[1723551617753,26.8388,146.23,146.18,6.8407]
[1723551618074,26.8388,146.23,146.19,45.50196]
[1723551618374,6.839,146.22,146.19,45.50196]
[1723551618576,6.839,146.22,146.14,31.45]
[1723551618577,6.8409,146.18,146.14,23.9484]
[1723551620573,17.1002,146.2,146.11,17.1099]
[1723551620756,17.1002,146.2,146.07,34.6853]
[1723551620757,20.0,146.19,146.07,34.6853]
[1723551621061,20.0,146.19,146.1,34.2228]
[1723551621246,20.0,146.2,146.11,31.45]
[1723551621671,20.0,146.21,146.16,23.9455]
[1723551621968,20.0,146.21,146.18,23.9424]
[1723551622346,20.0,146.21,146.19,0.25098]
[1723551622671,26.8394,146.21,146.2,0.12549]
[1723551622864,6.84,146.2,146.17,0.12549]
[1723551623067,6.84,146.2,146.17,45.50196]
[1723551623570,6.84,146.2,146.17,0.50196]
[1723551623973,6.8406,146.19,146.17,0.50196]
[1723551624185,37.0991,146.21,146.16,45.0]
[1723551624471,6.8422,146.16,146.12,23.9522]
[1723551624867,17.1015,146.19,146.12,17.1087]
[1723551625168,6.8421,146.16,146.12,23.9523]
[1723551625368,6.8423,146.15,146.12,17.1087]
[1723551625578,6.8423,146.15,146.11,6.844]
[1723551626378,6.8419,146.16,146.12,6.8435]
[1723551626586,6.8426,146.15,146.11,17.11]
[1723551626769,6.2663,146.17,146.11,17.11]
[1723551626964,16.5003,146.15,146.08,17.1132]
[1723551627172,20.0,146.14,146.08,17.1132]
[1723551627787,6.8442,146.11,146.08,17.1132]
[1723551628156,6.8442,146.11,146.06,6.8463]
[1723551628372,6.8442,146.11,146.05,17.1165]
[1723551628580,6.8442,146.11,146.07,6.8459]
[1723551629091,6.8451,146.09,146.05,23.9633]
[1723551629299,6.8451,146.09,146.0,81.18197767]
[1723551629300,13.1119,146.08,146.04,6.8471]
[1723551629591,6.8445,146.11,146.06,6.8462]
[1723551629882,20.0,146.1,146.07,6.846]
[1723551630292,6.5249,146.13,146.08,23.9586]
[1723551630583,20.0,146.12,146.08,23.9587]
[1723551630770,20.0,146.12,146.09,6.97019]
[1723551630962,20.0,146.12,146.09,0.12549]
[1723551631161,20.0,146.12,146.1,0.12549]
[1723551631383,20.0,146.12,146.1,0.25098]
[1723551631583,26.8437,146.12,146.1,0.12549]
[1723551631988,20.0,146.12,146.1,0.25098]
[1723551632463,20.0,146.12,146.1,0.12549]
[1723551632660,26.844,146.12,146.1,0.12549]
[1723551632986,20.0,146.12,146.1,0.12549]
[1723551633180,26.844,146.12,146.1,0.12549]
[1723551633384,20.0,146.12,146.1,0.37647]
[1723551634788,20.0,146.12,146.11,0.25098]
[1723551635081,20.0,146.12,146.11,0.37647]
[1723551635289,20.0,146.12,146.11,7.22057]
[1723551635593,20.0,146.12,146.11,45.37647]
[1723551635805,6.5249,146.13,146.11,52.22027]
[1723551636097,6.0818,146.18,146.13,0.12549]
[1723551636269,6.0818,146.18,146.13,17.35878]
[1723551636458,6.8414,146.17,146.15,0.12549]
[1723551636662,6.8414,146.17,146.15,0.25098]
[1723551636861,6.8422,146.15,146.14,0.12549]
[1723551637286,6.0818,146.18,146.15,0.12549]
[1723551637586,6.0818,146.18,146.15,7.09318]
[1723551637762,6.0818,146.18,146.16,45.0]
[1723551637961,6.0818,146.18,146.17,0.12549]
[1723551638382,12.9226,146.18,146.17,0.12549]
[1723551638891,6.8418,146.16,146.15,0.25098]
[1723551639099,6.8426,146.15,146.11,23.9537]
[1723551639265,6.8427,146.14,146.12,45.0]
[1723551639470,6.8432,146.13,146.12,45.0]
[1723551639777,6.8441,146.11,146.08,17.1133]
[1723551641076,6.8441,146.11,146.07,6.8457]
[1723551641591,6.8447,146.1,146.06,6.8464]
[1723551642176,6.8447,146.1,146.07,0.25098]
[1723551642489,16.5604,146.12,146.02,24.23700704]
[1723551642700,39.001,146.18,146.03,0.604]
[1723551642866,6.6486,146.21,146.18,6.8408]
[1723551643202,6.8399,146.2,146.17,17.1029]
[1723551643998,6.8399,146.2,146.18,45.50196]
[1723551644202,6.8404,146.19,146.18,45.50196]
[1723551644369,6.6486,146.21,146.18,45.50196]
[1723551644716,15.2497,146.22,146.18,52.34246]
[1723551644875,15.2497,146.22,146.19,0.25098]
[1723551645069,15.2497,146.22,146.2,0.25098]
[1723551645384,22.089,146.22,146.2,0.12549]
[1723551645689,20.0,146.21,146.19,0.37647]
[1723551646096,20.0,146.21,146.2,0.12549]
[1723551646282,26.8394,146.21,146.19,0.37647]
[1723551646482,26.8395,146.21,146.19,0.37647]
[1723551647798,20.0,146.21,146.19,0.37647]
[1723551647996,15.2497,146.22,146.2,0.12549]
[1723551648709,6.8388,146.23,146.21,0.12549]
[1723551648885,6.8388,146.23,146.21,0.37647]
[1723551648886,20.0,146.22,146.21,0.37647]
[1723551649085,20.0,146.22,146.21,0.50196]
[1723551649586,26.839,146.22,146.21,0.37647]
[1723551649795,20.0,146.22,146.21,0.37647]
[1723551650593,20.0,146.22,146.21,0.50196]
[1723551650805,26.839,146.22,146.21,0.50196]
[1723551651188,26.839,146.22,146.21,0.12549]
[1723551652010,6.8407,146.19,146.15,23.9466]
[1723551652415,20.0,146.22,146.14,6.8424]
[1723551652416,6.841,146.18,146.14,6.8424]
[1723551652593,37.0978,146.22,146.12,17.1082]
[1723551652905,6.842,146.16,146.12,17.1082]
[1723551653103,6.8427,146.14,146.09,17.1121]
[1723551653306,6.8427,146.14,146.1,6.8442]
[1723551653811,6.8424,146.15,146.1,6.8442]
[1723551654181,6.8424,146.15,146.09,17.1121]
[1723551654377,6.8435,146.13,146.09,23.9568]
[1723551654587,6.8438,146.12,146.09,17.1121]
[1723551654809,6.8429,146.14,146.09,23.957]
[1723551655311,6.8437,146.12,146.09,17.1121]
[1723551655508,6.8446,146.1,146.06,23.9614]
[1723551656019,6.8443,146.11,146.07,6.8459]
[1723551656219,45.5853,146.16,146.08,18.48134865]
[1723551656418,26.8424,146.15,146.08,1.36794865]
[1723551656587,6.8428,146.14,146.1,23.9557]
[1723551656791,6.8433,146.13,146.1,17.1112]
[1723551657001,20.0,146.15,146.08,0.12549]
[1723551657209,6.8444,146.11,146.08,45.12549]
[1723551657888,6.8451,146.09,146.05,6.8468]
[1723551658125,6.8447,146.1,146.06,6.8464]
[1723551659113,22.9466,146.11,146.07,6.846]
[1723551659323,22.9466,146.11,146.08,45.0]
[1723551659615,6.8446,146.1,146.08,45.0]
[1723551659914,6.8446,146.1,146.07,45.0]
[1723551660215,16.1022,146.11,146.08,7.34716]
[1723551660421,20.0,146.15,146.1,0.12549]
[1723551660422,35.4512,146.15,146.1,0.12549]
[1723551660586,35.4512,146.15,146.1,0.50196]
[1723551660786,35.4512,146.15,146.1,0.12549]
[1723551661314,6.8441,146.11,146.1,0.12549]
[1723551661514,6.8437,146.12,146.1,0.12549]
[1723551661715,6.8433,146.13,146.11,0.12549]
[1723551662021,26.8436,146.12,146.11,0.12549]
[1723551662395,20.0,146.12,146.11,0.25098]
[1723551662691,15.4512,146.15,146.11,0.50196]
[1723551662890,15.4512,146.15,146.13,0.12549]
[1723551663093,22.2935,146.15,146.13,45.25098]
[1723551663323,22.2935,146.15,146.1,0.12549]
[1723551663324,15.4512,146.15,146.1,0.12549]
[1723551663624,6.8431,146.14,146.1,45.50196]
[1723551663788,6.8432,146.13,146.1,45.50196]
[1723551664195,6.8428,146.14,146.1,45.50196]
[1723551664722,15.4512,146.15,146.1,45.50196]
[1723551664932,20.0,146.14,146.06,17.1154]
[1723551665811,6.8438,146.12,146.07,6.8455]
[1723551666289,6.8438,146.12,146.08,45.25098]
[1723551666717,6.8442,146.11,146.09,0.12549]
[1723551666886,6.8446,146.1,146.06,17.1154]
[1723551667091,6.8458,146.08,146.04,6.847]
[1723551667311,6.8452,146.09,146.04,6.847]
[1723551667510,17.1083,146.13,146.04,6.847]
[1723551667717,6.8461,146.07,146.03,23.9669]
[1723551668127,6.8465,146.06,146.02,6.8482]
[1723551668298,6.847,146.05,146.01,6.8486]
[1723551668704,6.8466,146.06,146.01,6.8486]
[1723551669295,6.8466,146.06,146.0,17.1223]
[1723551669489,15.2788,146.07,146.04,6.8471]
[1723551670322,22.1252,146.07,146.02,23.9684]
[1723551670521,22.1252,146.07,146.03,45.25098]
[1723551670727,6.8466,146.06,146.03,45.25098]
[1723551671102,15.2788,146.07,146.0,6.8492]
[1723551671328,6.8475,146.04,145.99,23.9731]
[1723551671499,6.8475,146.04,145.99,17.1235]
[1723551671690,6.847,146.05,146.01,6.8488]
[1723551671891,15.2788,146.07,146.0,6.8491]
[1723551672097,20.0,146.06,146.0,6.8491]
[1723551672395,20.0,146.06,146.01,62.1215]
[1723551672731,6.8472,146.05,146.02,0.25098]
[1723551673026,6.8475,146.04,146.02,0.12549]
[1723551673234,6.8475,146.04,146.01,17.1215]
[1723551673433,6.8475,146.04,146.0,6.97449]
[1723551673604,6.8475,146.04,146.01,0.12549]
[1723551673802,6.8482,146.03,145.98,17.1246]
[1723551673997,6.8488,146.01,145.97,6.8504]
[1723551674425,6.8496,146.0,145.95,24.8075953]
[1723551674927,17.1179,146.05,145.95,24.8075953]
[1723551674928,6.8498,145.99,145.95,24.8075953]
[1723551675410,6.8497,145.99,145.95,24.8075953]
[1723551675720,6.5603,146.01,145.95,0.8280953]
[1723551675721,6.851,145.97,145.95,0.8280953]
[1723551676427,6.8511,145.96,145.95,0.8280953]
[1723551676612,6.8509,145.97,145.95,0.8280953]
[1723551677325,6.8511,145.96,145.95,0.8280953]
[1723551677730,20.0,145.96,145.95,0.8280953]
[1723551678428,26.8511,145.96,145.95,0.8280953]
[1723551678602,20.0,145.96,145.95,0.9535853]
[1723551678803,26.8511,145.96,145.88,23.9915]
[1723551679029,43.95488731,145.95,145.84,34.2839]
[1723551679336,6.8536,145.91,145.86,6.8557]
[1723551679923,42.2414,145.95,145.87,17.1374]
[1723551680140,6.8533,145.92,145.88,6.8549]
[1723551680429,6.8526,145.93,145.88,6.8549]
[1723551680723,1.71335979,145.92,145.88,6.8549]
[1723551681038,6.8531,145.92,145.87,23.9925]
[1723551681212,6.8531,145.92,145.88,0.37647]
[1723551681418,6.8531,145.92,145.88,45.37647]
[1723551681721,6.8535,145.91,145.86,6.8557]
[1723551682027,6.8548,145.89,145.84,17.1411]
[1723551682208,6.8547,145.89,145.84,23.9975]
[1723551682408,6.8541,145.9,145.85,6.8563]
[1723551682612,6.8536,145.91,145.84,17.1411]
[1723551682813,42.2414,145.95,145.83,39.36]
[1723551683133,42.2414,145.95,145.85,73.6412]
[1723551683330,42.2414,145.95,145.87,17.1376]
[1723551683331,6.8524,145.94,145.87,17.1376]
[1723551683631,42.2414,145.95,145.9,6.8539]
[1723551683805,42.2414,145.95,145.91,45.0]
[1723551684131,6.8521,145.94,145.91,45.12549]
[1723551684309,22.2414,145.95,145.92,0.37647]
[1723551684635,29.093,145.95,145.93,0.25098]
[1723551684814,22.2414,145.95,145.94,0.12549]
[1723551685014,15.8552,145.95,145.94,0.12549]
[1723551687531,15.8349,145.99,145.96,0.12549]
[1723551687728,15.8349,145.99,145.96,45.50196]
[1723551688029,6.4498,146.02,145.98,6.8502]
[1723551688238,6.4498,146.02,145.99,0.12549]
[1723551688446,13.2984,146.02,145.99,0.12549]
[1723551688610,6.4498,146.02,145.99,0.12549]
[1723551688810,6.4498,146.02,145.96,0.25098]
[1723551689033,6.4498,146.02,145.96,0.12549]
[1723551689034,6.8501,145.99,145.96,0.12549]
[1723551689336,6.8501,145.99,145.96,0.25098]
[1723551689905,6.4498,146.02,145.96,0.12549]
[1723551690112,37.1226,146.01,145.96,0.12549]
[1723551690318,37.1226,146.01,145.91,17.1332]
[1723551690506,6.851,145.97,145.91,17.1332]
[1723551690928,6.851,145.97,145.92,6.8529]
[1723551691127,6.8508,145.97,145.91,23.9863]
[1723551692414,6.8513,145.96,145.92,45.25098]
[1723551692618,15.1816,145.98,145.89,6.8543]
[1723551692828,15.1816,145.98,145.85,39.36]
[1723551692829,6.8512,145.96,145.91,6.8532]
[1723551693441,15.1816,145.98,145.85,39.36]
[1723551693442,6.8522,145.94,145.89,6.8544]
[1723551693657,6.8522,145.94,145.88,6.8545]
[1723551693864,6.8517,145.95,145.89,6.8543]
[1723551694036,6.8517,145.95,145.9,6.8539]
[1723551694233,6.8526,145.93,145.88,6.8548]
[1723551694453,6.8532,145.92,145.87,6.8553]
[1723551694857,6.5015,145.94,145.88,17.1362]
[1723551695157,6.5015,145.94,145.9,17.1346]
[1723551695328,21.6831,145.98,145.94,6.8521]
[1723551695535,20.0,145.97,145.95,6.8516]
[1723551695769,20.0,145.97,145.96,0.12549]
[1723551696259,21.6831,145.98,145.96,0.12549]
[1723551696828,28.5334,145.98,145.96,0.12549]
[1723551697835,21.6831,145.98,145.96,0.12549]
[1723551698067,15.1816,145.98,145.96,0.12549]
[1723551698358,6.8499,145.99,145.96,0.25098]
[1723551698575,6.8502,145.98,145.96,0.12549]
[1723551698737,6.8507,145.97,145.96,0.12549]
[1723551698929,22.851,146.01,145.96,0.12549]